bitfinex-derivatives/quotes_BTCF0:USTF0_20250830
["timestamp","ask_amount","ask_price","bid_price","bid_amount"]
[1756515151891,0.17260618,108330.0,108320.0,1.00949696]
[1756515152195,0.17260618,108330.0,108320.0,1.86353696]
[1756515152794,0.17260618,108330.0,108320.0,1.00949696]
[1756515152996,0.17260618,108330.0,108320.0,1.86349696]
[1756515157901,0.17260618,108330.0,108320.0,1.00949696]
[1756515158101,0.17260618,108330.0,108320.0,1.86337696]
[1756515158602,0.35920784,108340.0,108320.0,1.90046696]
[1756515158903,0.38521784,108340.0,108330.0,0.41816911]
[1756515160502,0.42215784,108340.0,108330.0,0.41816911]
[1756515161101,0.46735055,108340.0,108330.0,0.41816911]
[1756515161601,0.46735055,108340.0,108330.0,0.42016911]
[1756515162103,0.46894271,108340.0,108330.0,0.42016911]
[1756515162505,1.07436182,108340.0,108330.0,0.06475]
[1756515162804,1.07436182,108340.0,108330.0,0.02766]
[1756515163001,1.07436182,108340.0,108330.0,0.06475]
[1756515163403,1.07451697,108340.0,108330.0,0.42032426]
[1756515164206,1.07451697,108340.0,108330.0,0.06475]
[1756515164509,1.07451697,108340.0,108330.0,0.42032426]
[1756515165405,0.71894271,108340.0,108330.0,0.42031429]
[1756515170413,0.07120271,108340.0,108330.0,0.77587858]
[1756515171709,0.10814271,108340.0,108330.0,0.77587858]
[1756515175805,0.07120271,108340.0,108330.0,0.77587858]
[1756515176010,0.07120271,108340.0,108330.0,1.13667858]
[1756515176909,0.04519271,108340.0,108330.0,1.38667858]
[1756515177114,1.25118,108360.0,108330.0,1.38667858]
[1756515177315,1.30053579,108360.0,108350.0,0.41831429]
[1756515179218,1.30153579,108360.0,108350.0,0.41831429]
[1756515180017,1.30145579,108360.0,108350.0,0.41831429]
[1756515181019,0.94065579,108360.0,108350.0,0.41831429]
[1756515181416,0.98738078,108360.0,108350.0,0.41831429]
[1756515181724,0.96403499,108360.0,108350.0,0.41831429]
[1756515182517,0.96391499,108360.0,108350.0,0.41831429]
[1756515184614,0.96387499,108360.0,108350.0,0.41831429]
[1756515189819,1.32467499,108360.0,108350.0,0.41831429]
[1756515191923,0.96387499,108360.0,108350.0,0.41831429]
[1756515192222,1.32467499,108360.0,108350.0,0.41831429]
[1756515195723,1.32467499,108360.0,108350.0,0.41939429]
[1756515197328,1.32467499,108360.0,108350.0,0.41921745]
[1756515203228,1.34800333,108360.0,108350.0,0.41921745]
[1756515203624,1.34800333,108360.0,108350.0,0.06383]
[1756515203823,1.34800333,108360.0,108350.0,0.41921745]
[1756515204029,1.32467499,108360.0,108350.0,0.41921745]
[1756515204327,1.34800707,108360.0,108350.0,0.41921745]
[1756515204526,1.70880707,108360.0,108350.0,0.38104745]
[1756515204825,2.06419452,108360.0,108350.0,0.35538745]
[1756515205034,0.0632,108350.0,108340.0,0.37618378]
[1756515205222,0.77938745,108350.0,108340.0,0.73157123]
[1756515205525,0.424,108350.0,108340.0,0.73157123]
[1756515206323,0.77938745,108350.0,108340.0,0.73157123]
[1756515206525,0.77938745,108350.0,108340.0,0.37618378]
[1756515209031,1.02938745,108350.0,108340.0,0.37618378]
[1756515209430,1.05272179,108350.0,108340.0,0.37618378]
[1756515214233,1.02938745,108350.0,108340.0,0.37618378]
[1756515215333,0.0392,108340.0,108330.0,0.02677]
[1756515215634,0.06588,108330.0,108320.0,0.40270336]
[1756515215833,0.78206745,108330.0,108320.0,0.40270336]
[1756515216224,0.78206745,108330.0,108320.0,0.37593336]
[1756515216835,0.78206745,108330.0,108320.0,0.37893336]
[1756515217333,0.42668,108330.0,108320.0,0.38018065]
[1756515218935,0.42668,108330.0,108320.0,0.40695065]
[1756515219437,0.50030693,108330.0,108320.0,0.40695065]
[1756515223645,0.85594167,108330.0,108320.0,0.40695065]
[1756515224143,0.85594167,108330.0,108320.0,0.05131591]
[1756515227747,0.50030693,108330.0,108320.0,0.40695065]
[1756515228948,0.13950693,108330.0,108320.0,0.40695065]
[1756515229143,0.50030693,108330.0,108320.0,0.40695065]
[1756515230049,1.35230693,108330.0,108320.0,0.44399065]
[1756515232655,0.50030693,108330.0,108320.0,0.44399065]
[1756515232854,1.35218693,108330.0,108320.0,0.44399065]
[1756515237558,1.35218693,108330.0,108320.0,0.40695065]
[1756515238254,1.35218693,108330.0,108320.0,0.004]
[1756515238255,1.70782167,108330.0,108320.0,0.004]
[1756515238652,1.95782167,108330.0,108320.0,0.004]
[1756515238855,1.98112595,108330.0,108320.0,0.004]
[1756515239355,1.7312117,108330.0,108320.0,0.004]
[1756515241354,2.08693219,108330.0,108320.0,0.004]
[1756515241546,1.7312117,108330.0,108320.0,0.004]
[1756515242456,1.7312117,108330.0,108320.0,0.003]
[1756515242851,0.03984,108320.0,108310.0,0.35572049]
[1756515243052,0.78210049,108320.0,108310.0,0.38155049]
[1756515243457,0.42638,108320.0,108310.0,0.38155049]
[1756515243657,0.59589476,108320.0,108310.0,0.38155049]
[1756515243855,0.62163476,108320.0,108310.0,0.42230049]
[1756515244159,0.26591427,108320.0,108310.0,0.42230049]
[1756515244352,1.47319476,108320.0,108310.0,0.42230049]
[1756515244754,1.47319476,108320.0,108310.0,0.42430049]
[1756515245858,1.51303476,108320.0,108310.0,0.42430049]
[1756515246358,0.30575427,108320.0,108310.0,0.42430049]
[1756515246651,1.53635455,108320.0,108310.0,0.42430049]
[1756515248955,0.32907406,108320.0,108310.0,0.42430049]
[1756515249267,1.53623455,108320.0,108310.0,0.42430049]
[1756515250457,0.32907406,108320.0,108310.0,0.42430049]
[1756515250662,1.53615455,108320.0,108310.0,0.42430049]
[1756515251861,1.51283476,108320.0,108310.0,0.42430049]
[1756515255364,0.30575427,108320.0,108310.0,0.42430049]
[1756515255561,0.30575427,108320.0,108310.0,1.39082098]
[1756515255562,0.02574,108320.0,108310.0,1.39082098]
[1756515256260,1.28690693,108330.0,108310.0,1.35007098]
[1756515256455,0.97515982,108330.0,108320.0,0.77802098]
[1756515258063,0.95184693,108330.0,108320.0,0.77802098]
[1756515259065,0.13920693,108330.0,108320.0,0.77802098]
[1756515259265,0.99032693,108330.0,108320.0,0.77802098]
[1756515259659,0.99032693,108330.0,108320.0,0.06658]
[1756515259864,0.99032693,108330.0,108320.0,0.77802098]
[1756515261864,1.01365379,108330.0,108320.0,0.77802098]
[1756515268878,1.01365379,108330.0,108320.0,0.06658]
[1756515269078,1.01365379,108330.0,108320.0,0.77802098]
[1756515271178,1.37445379,108330.0,108320.0,0.77802098]
[1756515271578,1.73017428,108330.0,108320.0,0.77802098]
[1756515276091,1.37445379,108330.0,108320.0,0.77802098]
[1756515276293,1.73017428,108330.0,108320.0,0.77802098]
[1756515277492,1.73017428,108330.0,108320.0,0.06658]
[1756515277893,1.73017428,108330.0,108320.0,0.77802098]
[1756515278394,1.37445379,108330.0,108320.0,0.77802098]
[1756515278596,1.73017428,108330.0,108320.0,0.77802098]
[1756515280392,0.52333379,108330.0,108320.0,0.77802098]
[1756515280590,1.72945428,108330.0,108320.0,0.77802098]
[1756515284499,0.87905428,108330.0,108320.0,0.77802098]
[1756515284694,1.72941428,108330.0,108320.0,0.77802098]
[1756515286704,1.37369379,108330.0,108320.0,0.06658]
[1756515287006,1.72941428,108330.0,108320.0,0.77802098]
[1756515287705,1.72941428,108330.0,108320.0,0.06658]
[1756515288004,1.72941428,108330.0,108320.0,0.77802098]
[1756515288707,1.37369379,108330.0,108320.0,0.77802098]
[1756515288908,1.72941428,108330.0,108320.0,0.77802098]
[1756515289702,1.37369379,108330.0,108320.0,0.77802098]
[1756515289910,1.72941428,108330.0,108320.0,0.77802098]
[1756515294413,1.72941428,108330.0,108320.0,0.02583]
[1756515294612,1.72941428,108330.0,108320.0,0.77770098]
[1756515295213,1.37369379,108330.0,108320.0,0.77770098]
[1756515295512,1.72941428,108330.0,108320.0,0.77770098]
[1756515300310,1.72941428,108330.0,108310.0,1.21068]
[1756515300311,1.72941428,108330.0,108310.0,0.04043]
[1756515300510,1.09732098,108320.0,108300.0,0.06059642]
[1756515300713,1.26836049,108310.0,108300.0,0.44293691]
[1756515300912,1.26836049,108310.0,108300.0,0.7986574]
[1756515301815,1.29172617,108310.0,108300.0,0.7986574]
[1756515302316,1.29172617,108310.0,108300.0,0.7996574]
[1756515303216,1.29172617,108310.0,108300.0,0.8026574]
[1756515303818,1.29172617,108310.0,108300.0,0.7996574]
[1756515304820,1.12111273,108310.0,108300.0,0.7986574]
[1756515305014,0.76539224,108310.0,108300.0,0.7986574]
[1756515305414,1.12111273,108310.0,108300.0,0.7986574]
[1756515306320,0.76539224,108310.0,108300.0,0.08721642]
[1756515306519,1.12111273,108310.0,108300.0,0.40250691]
[1756515306721,1.48191273,108310.0,108300.0,0.35572049]
[1756515308122,0.06453,108300.0,108290.0,0.08459937]
[1756515308417,0.42025049,108300.0,108290.0,0.44031986]
[1756515308624,0.80438191,108300.0,108290.0,0.04452937]
[1756515308823,1.65410191,108300.0,108290.0,0.40024986]
[1756515309221,1.90410191,108300.0,108290.0,0.40024986]
[1756515309421,1.90410191,108300.0,108290.0,0.40224986]
[1756515309918,2.2598224,108300.0,108290.0,0.02224937]
[1756515310119,1.90410191,108300.0,108290.0,0.02224937]
[1756515310424,1.90410191,108300.0,108290.0,0.37796986]
[1756515310630,2.2598224,108300.0,108290.0,0.37796986]
[1756515311826,2.23649098,108300.0,108290.0,0.37796986]
[1756515312324,2.23649098,108300.0,108290.0,0.40224986]
[1756515312922,1.38677098,108300.0,108290.0,0.40224986]
[1756515313126,2.23645098,108300.0,108290.0,0.40224986]
[1756515313327,1.88073049,108300.0,108290.0,0.40224986]
[1756515315030,1.88073049,108300.0,108290.0,0.02224937]
[1756515315223,1.88073049,108300.0,108290.0,0.37796986]
[1756515315730,2.23645098,108300.0,108290.0,0.37796986]
[1756515316031,1.98645098,108300.0,108290.0,0.002]
[1756515316234,0.06453,108290.0,108280.0,0.38000049]
[1756515316534,0.78105049,108290.0,108280.0,0.38000049]
[1756515316831,1.63065049,108290.0,108280.0,0.38000049]
[1756515317432,1.63065049,108290.0,108280.0,0.38100049]
[1756515318128,1.63065049,108290.0,108280.0,0.02528]
[1756515318433,1.63065049,108290.0,108280.0,0.001]
[1756515318828,1.63065049,108290.0,108280.0,0.35872049]
[1756515319429,1.63065049,108290.0,108280.0,0.003]
[1756515321038,0.78105049,108290.0,108280.0,0.003]
[1756515321240,1.63065049,108290.0,108280.0,0.003]
[1756515323442,2.23637098,108290.0,108280.0,0.003]
[1756515323636,2.33637098,108290.0,108280.0,0.003]
[1756515323837,1.48677098,108290.0,108280.0,0.003]
[1756515324144,2.33633098,108290.0,108280.0,0.003]
[1756515324444,2.35961195,108290.0,108280.0,0.003]
[1756515327242,1.51005195,108290.0,108280.0,0.003]
[1756515327542,0.06453,108270.0,108260.0,0.08223851]
[1756515327743,1.26977049,108270.0,108260.0,0.437959]
[1756515328244,1.30833148,108270.0,108260.0,0.437959]
[1756515328845,1.38318109,108270.0,108260.0,0.437959]
[1756515329142,1.38318109,108270.0,108260.0,0.441959]
[1756515329643,1.38318109,108270.0,108260.0,0.444959]
[1756515330244,0.1779406,108270.0,108260.0,0.444959]
[1756515330540,0.53366109,108270.0,108260.0,0.444959]
[1756515330746,1.38318109,108270.0,108260.0,0.444959]
[1756515331047,1.38318109,108270.0,108260.0,0.80067949]
[1756515333550,1.0274206,108270.0,108260.0,0.80067949]
[1756515333847,1.38310109,108270.0,108260.0,0.80067949]
[1756515337050,0.1779406,108270.0,108260.0,0.80067949]
[1756515337249,1.38310109,108270.0,108260.0,0.80067949]
[1756515338152,0.1779406,108270.0,108260.0,1.16147949]
[1756515338355,0.1779406,108270.0,108260.0,1.41147949]
[1756515338356,0.1134106,108270.0,108260.0,1.41147949]
[1756515338655,0.91191,108280.0,108270.0,0.03662]
[1756515338951,0.93523642,108280.0,108270.0,0.77452098]
[1756515339250,0.93523642,108280.0,108270.0,0.41880049]
[1756515339548,0.08583642,108280.0,108270.0,0.41880049]
[1756515339855,0.02539,108280.0,108270.0,1.14032098]
[1756515340351,0.91187,108290.0,108280.0,0.06308]
[1756515340650,0.95067693,108290.0,108280.0,0.77452098]
[1756515341754,0.97401468,108290.0,108280.0,0.77452098]
[1756515342251,0.12465468,108290.0,108280.0,0.77552098]
[1756515342555,0.03880693,108290.0,108280.0,1.13732098]
[1756515342858,1.27259,108300.0,108290.0,0.06308]
[1756515343043,1.29593094,108300.0,108290.0,0.41880049]
[1756515344155,0.1238388,108300.0,108290.0,0.41880049]
[1756515344355,0.9731188,108300.0,108290.0,0.77452098]
[1756515344551,0.94977786,108300.0,108290.0,0.41880049]
[1756515350549,0.10049786,108300.0,108290.0,0.41880049]
[1756515351053,0.10049786,108300.0,108290.0,1.13532098]
[1756515351758,0.06126886,108300.0,108290.0,1.38532098]
[1756515351947,0.03798786,108300.0,108290.0,1.38532098]
[1756515352151,0.02539,108300.0,108290.0,1.34870098]
[1756515352352,0.06410122,108300.0,108290.0,1.38532098]
[1756515352552,0.02539,108300.0,108290.0,1.38532098]
[1756515352859,0.06251,108310.0,108300.0,0.06308]
[1756515353065,0.18578689,108310.0,108300.0,1.13532098]
[1756515354352,0.22430203,108310.0,108300.0,1.13532098]
[1756515354555,0.22430203,108310.0,108300.0,1.98424098]
[1756515355257,0.20202514,108310.0,108300.0,1.62847183]
[1756515355655,0.20202514,108310.0,108300.0,1.62843183]
[1756515358365,0.20202514,108310.0,108300.0,1.27276]
[1756515358667,0.20202514,108310.0,108300.0,1.62843183]
[1756515361366,0.20102514,108310.0,108300.0,1.62843183]
[1756515362269,0.20102514,108310.0,108300.0,0.77955183]
[1756515362564,0.20021514,108310.0,108300.0,1.62819183]
[1756515362764,0.20021514,108310.0,108300.0,1.98386366]
[1756515362765,0.16390514,108310.0,108300.0,1.98386366]
[1756515362965,0.03851514,108310.0,108300.0,1.98386366]
[1756515363164,0.03631,108320.0,108300.0,1.98386366]
[1756515363366,0.16047,108320.0,108310.0,1.26516183]
[1756515366467,0.16047,108320.0,108310.0,1.62596183]
[1756515366666,0.19958331,108320.0,108310.0,1.62596183]
[1756515371972,0.16327331,108320.0,108310.0,1.62596183]
[1756515375376,0.16327331,108320.0,108310.0,1.9814563]
[1756515376473,0.16327331,108320.0,108310.0,1.9810563]
[1756515377571,0.16327331,108320.0,108310.0,1.1328563]
[1756515377773,0.19958331,108320.0,108310.0,1.62543315]
[1756515379278,0.19958331,108320.0,108310.0,0.77727315]
[1756515379475,0.19958331,108320.0,108310.0,1.62539315]
[1756515380971,0.19958331,108320.0,108310.0,1.9809763]
[1756515380972,0.16241912,108320.0,108310.0,1.9809763]
[1756515381170,0.13911331,108320.0,108310.0,1.9809763]
[1756515381368,0.03911331,108320.0,108310.0,2.67887355]
[1756515381670,0.07362693,108330.0,108320.0,0.06003]
[1756515381876,0.4657684,108350.0,108320.0,1.47367854]
[1756515382074,0.12416,108340.0,108330.0,1.26891]
[1756515382376,0.02330402,108340.0,108330.0,1.26891]
[1756515382572,0.1000084,108350.0,108340.0,0.03461]
[1756515382777,0.29742925,108350.0,108340.0,0.06003]
[1756515383277,0.29742925,108350.0,108340.0,0.4154711]
[1756515384079,0.29742925,108350.0,108340.0,1.2634711]
[1756515384480,0.26111925,108350.0,108340.0,1.2634711]
[1756515384678,0.2378137,108350.0,108340.0,1.2634711]
[1756515384977,0.2378137,108350.0,108340.0,1.6242711]
[1756515385985,0.03631,108360.0,108340.0,1.6242711]
[1756515385986,0.06047,108360.0,108350.0,0.06003]
[1756515386284,0.1837484,108360.0,108350.0,0.79649273]
[1756515386581,0.16047,108360.0,108350.0,0.79649273]
[1756515387179,0.27480804,108360.0,108350.0,0.79649273]
[1756515388578,0.23849804,108360.0,108350.0,0.79649273]
[1756515388780,0.21433804,108360.0,108350.0,1.04649273]
[1756515391785,0.23757522,108360.0,108350.0,1.04649273]
[1756515395184,0.23757522,108360.0,108350.0,1.89409273]
[1756515395982,0.23757522,108360.0,108350.0,1.89405273]
[1756515396584,0.23757522,108360.0,108350.0,1.04649273]
[1756515396785,0.23757522,108360.0,108350.0,1.89401273]
[1756515397083,0.02574,108360.0,108350.0,1.89401273]
[1756515398387,0.02574,108360.0,108350.0,1.04649273]
[1756515398684,0.02574,108360.0,108350.0,1.89393273]
[1756515399486,0.02574,108360.0,108350.0,1.04649273]
[1756515399683,0.02574,108360.0,108350.0,1.89393273]
[1756515400088,0.09878562,108360.0,108350.0,1.89393273]
[1756515402182,0.19878562,108360.0,108350.0,1.89393273]
[1756515405187,0.19878562,108360.0,108350.0,1.89377273]
[1756515409297,0.19878562,108360.0,108350.0,2.24895565]
[1756515409997,0.19878562,108360.0,108350.0,1.40167565]
[1756515410196,0.19878562,108360.0,108350.0,2.24879565]
[1756515411096,0.22191711,108360.0,108350.0,2.24879565]
[1756515414800,0.19617711,108360.0,108350.0,2.24879565]
[1756515419203,0.19617711,108360.0,108350.0,1.99879565]
[1756515434121,0.17304562,108360.0,108350.0,1.99879565]
[1756515441921,0.19622649,108360.0,108350.0,1.99879565]
[1756515445530,0.12318087,108360.0,108350.0,2.60410766]
[1756515445728,0.02318087,108360.0,108350.0,2.60410766]
[1756515446033,0.02318087,108360.0,108350.0,2.24879565]
[1756515448135,0.02318087,108360.0,108350.0,2.60410766]
[1756515449328,0.02318087,108360.0,108350.0,2.82400766]
[1756515451934,0.10701922,108370.0,108350.0,2.78939766]
[1756515452135,0.02524,108370.0,108360.0,1.06593603]
[1756515452333,0.07203795,108370.0,108360.0,1.06593603]
[1756515453844,0.07203795,108370.0,108360.0,1.42673603]
[1756515454130,0.04679795,108370.0,108360.0,1.42673603]
[1756515454327,0.11422134,108380.0,108360.0,1.42673603]
[1756515454525,0.23946134,108380.0,108370.0,1.55666402]
[1756515455841,0.20016134,108380.0,108370.0,1.93818907]
[1756515456032,0.13776134,108380.0,108370.0,1.93818907]
[1756515456831,0.1848629,108380.0,108370.0,1.93818907]
[1756515460239,0.1472629,108380.0,108370.0,1.93818907]
[1756515461538,0.1472629,108380.0,108370.0,1.93802907]
[1756515462240,0.1848629,108380.0,108370.0,1.93802907]
[1756515462742,0.1848629,108380.0,108370.0,0.73134907]
[1756515462937,0.1848629,108380.0,108370.0,1.57722907]
[1756515463132,0.1848629,108380.0,108370.0,0.73134907]
[1756515463345,0.5456629,108380.0,108370.0,1.57718907]
[1756515463846,0.5456629,108380.0,108370.0,0.73134907]
[1756515464043,0.5456629,108380.0,108370.0,1.22187706]
[1756515466147,0.5456629,108380.0,108370.0,0.37603706]
[1756515466348,0.5456629,108380.0,108370.0,1.22183706]
[1756515468443,0.5456629,108380.0,108370.0,1.57714907]
[1756515469454,0.6456629,108380.0,108370.0,1.57714907]
[1756515469641,0.2848629,108380.0,108370.0,1.57714907]
[1756515470751,0.2848629,108380.0,108370.0,0.73134907]
[1756515470953,0.2848629,108380.0,108370.0,1.57706907]
[1756515471957,0.2848629,108380.0,108370.0,0.02072505]
[1756515472147,0.6456629,108380.0,108370.0,1.57706907]
[1756515472652,0.6456629,108380.0,108370.0,0.73134907]
[1756515472854,0.6456629,108380.0,108370.0,1.57702907]
[1756515473647,0.2848629,108380.0,108370.0,1.57702907]
[1756515475153,0.6456629,108380.0,108370.0,1.57702907]
[1756515476055,0.2848629,108380.0,108370.0,1.57702907]
[1756515476251,0.48604,108380.0,108370.0,1.61433907]
[1756515476450,0.12524,108380.0,108370.0,1.61433907]
[1756515477554,0.19880345,108380.0,108370.0,1.61433907]
[1756515478060,0.24592966,108380.0,108370.0,1.61433907]
[1756515479860,0.22068966,108380.0,108370.0,1.61433907]
[1756515480156,0.12068966,108380.0,108370.0,1.97513907]
[1756515480352,0.48604,108390.0,108380.0,0.02577]
[1756515480559,0.54700833,108390.0,108380.0,0.77370402]
[1756515481052,0.90232034,108390.0,108380.0,0.77370402]
[1756515481453,0.9489385,108390.0,108380.0,0.06308]
[1756515481654,0.9489385,108390.0,108380.0,0.77370402]
[1756515482662,1.02415548,108390.0,108380.0,0.77370402]
[1756515484060,1.02415548,108390.0,108380.0,0.73639402]
[1756515484256,1.02415548,108390.0,108380.0,0.77291402]
[1756515486455,1.02415548,108390.0,108380.0,0.06229]
[1756515486761,1.02415548,108390.0,108380.0,0.41760201]
[1756515490261,1.02415548,108390.0,108380.0,0.77291402]
[1756515492265,0.66884347,108390.0,108380.0,0.77291402]
[1756515492465,0.66884347,108390.0,108380.0,0.06229]
[1756515492662,0.66884347,108390.0,108380.0,0.77291402]
[1756515493068,1.51432347,108390.0,108380.0,0.77291402]
[1756515493864,0.66884347,108390.0,108380.0,0.77291402]
[1756515494059,1.51428347,108390.0,108380.0,0.77291402]
[1756515494867,0.66884347,108390.0,108380.0,0.77291402]
[1756515495160,1.51428347,108390.0,108380.0,0.77291402]
[1756515497571,1.86959548,108390.0,108380.0,0.77291402]
[1756515497872,1.51428347,108390.0,108380.0,0.77291402]
[1756515499572,0.66884347,108390.0,108380.0,0.77291402]
[1756515501491,0.66884347,108390.0,108380.0,0.73639402]
[1756515501879,0.66884347,108390.0,108380.0,0.77291402]
[1756515507186,0.66884347,108390.0,108380.0,0.41760201]
[1756515507490,0.66884347,108390.0,108380.0,0.77291402]
[1756515508293,0.47881394,108390.0,108380.0,0.77291402]
[1756515509992,0.37881394,108390.0,108380.0,0.77291402]
[1756515510688,0.47881394,108390.0,108380.0,0.77291402]
[1756515516893,0.47881394,108390.0,108380.0,0.06229]
[1756515517099,0.47881394,108390.0,108380.0,0.77291402]
[1756515519003,0.30804347,108390.0,108380.0,0.77291402]
[1756515540107,0.30804347,108390.0,108380.0,0.06229]
[1756515540416,0.30804347,108390.0,108380.0,0.77291402]
[1756515544817,0.27044347,108390.0,108380.0,0.77291402]
[1756515545719,0.27044347,108390.0,108380.0,1.13371402]
[1756515546121,0.30723347,108390.0,108380.0,1.61771402]
[1756515548024,0.30723347,108390.0,108380.0,0.77291402]
[1756515553428,0.30723347,108390.0,108380.0,0.06229]
[1756515553621,0.30723347,108390.0,108380.0,0.77291402]
[1756515559932,0.27044347,108390.0,108380.0,0.77291402]
[1756515560133,0.24520347,108390.0,108380.0,1.73902603]
[1756515560432,0.22183514,108390.0,108380.0,1.73902603]
[1756515563824,0.22183514,108390.0,108380.0,2.58346603]
[1756515573736,0.14661816,108390.0,108380.0,2.33346603]
[1756515578333,0.14661816,108390.0,108380.0,2.35383454]
[1756515580038,0.14661816,108390.0,108380.0,2.71463454]
[1756515581438,0.14661816,108390.0,108380.0,2.35383454]
[1756515586936,0.18198816,108390.0,108380.0,1.15408253]
[1756515587242,0.18198816,108390.0,108380.0,1.99800253]
[1756515587644,0.14661816,108390.0,108380.0,2.35331454]
[1756515587843,0.14661816,108390.0,108380.0,1.99800253]
[1756515588141,0.18198816,108390.0,108380.0,1.99800253]
[1756515590545,0.18198816,108390.0,108380.0,1.97759402]
[1756515591943,1.17238017,108390.0,108380.0,1.26144201]
[1756515592143,1.1956873,108390.0,108380.0,1.26140201]
[1756515592441,1.1956873,108390.0,108380.0,1.22488201]
[1756515592848,1.1956873,108390.0,108380.0,0.38108201]
[1756515593949,0.84037529,108390.0,108380.0,0.77204402]
[1756515594153,0.47957529,108390.0,108380.0,0.77204402]
[1756515596445,0.81158017,108390.0,108380.0,0.77204402]
[1756515596953,0.83485469,108390.0,108380.0,0.77204402]
[1756515597452,0.81158017,108390.0,108380.0,0.77204402]
[1756515597653,0.45626816,108390.0,108380.0,0.77204402]
[1756515597953,0.81158017,108390.0,108380.0,0.77204402]
[1756515599156,0.56158017,108390.0,108380.0,0.77204402]
[1756515600254,0.94564873,108390.0,108380.0,0.41673201]
[1756515600449,1.19564873,108390.0,108370.0,0.87937]
[1756515600650,0.45496672,108390.0,108380.0,0.35531201]
[1756515600954,0.55496672,108390.0,108360.0,0.20803061]
[1756515601143,0.06256,108370.0,108360.0,0.23080061]
[1756515601460,0.03821,108360.0,108350.0,0.02277]
[1756515601649,0.42336,108360.0,108350.0,0.02277]
[1756515601949,0.41787201,108360.0,108350.0,0.37808201]
[1756515602952,0.41787201,108360.0,108350.0,0.41526201]
[1756515603355,0.06256,108360.0,108350.0,0.41537882]
[1756515604152,0.06256,108360.0,108350.0,0.77617882]
[1756515606552,0.02435,108360.0,108350.0,0.77617882]
[1756515607059,0.38515,108380.0,108370.0,0.05995]
[1756515607259,0.48515,108380.0,108370.0,0.41537882]
[1756515607850,0.12435,108380.0,108370.0,0.77617882]
[1756515609657,0.12435,108380.0,108370.0,0.42075]
[1756515609863,0.12435,108380.0,108370.0,0.77617882]
[1756515613354,0.52336,108380.0,108370.0,0.41537882]
[1756515615160,0.16256,108380.0,108370.0,0.41537882]
[1756515616356,0.18580059,108380.0,108370.0,0.41537882]
[1756515617458,0.75084828,108390.0,108380.0,0.03718]
[1756515617660,0.77519828,108390.0,108380.0,0.05995]
[1756515619567,0.06256,108380.0,108370.0,0.01896058]
[1756515619760,0.77878882,108380.0,108370.0,0.01896058]
[1756515619959,1.62226882,108380.0,108370.0,0.01896058]
[1756515621861,0.77878882,108380.0,108370.0,0.01896058]
[1756515622058,1.62226882,108380.0,108370.0,0.01896058]
[1756515622460,1.62226882,108380.0,108370.0,0.05614058]
[1756515623255,1.72226882,108380.0,108370.0,0.05614058]
[1756515623460,1.72226882,108380.0,108370.0,0.01896058]
[1756515625064,1.72226882,108380.0,108370.0,0.05614058]
[1756515628264,0.87878882,108380.0,108370.0,0.05614058]
[1756515628567,1.72222882,108380.0,108370.0,0.05614058]
[1756515628768,1.72222882,108380.0,108370.0,0.01896058]
[1756515629467,1.74512011,108380.0,108370.0,0.01896058]
[1756515629666,1.74512011,108380.0,108360.0,0.39260882]
[1756515629965,0.16256,108370.0,108360.0,0.41537882]
[1756515630165,0.18545129,108370.0,108360.0,0.41537882]
[1756515630557,0.54625129,108370.0,108360.0,0.41537882]
[1756515631469,1.38965129,108370.0,108360.0,0.41537882]
[1756515631859,1.36676,108370.0,108360.0,0.41537882]
[1756515632267,1.38965326,108370.0,108360.0,0.41537882]
[1756515633367,0.54625326,108370.0,108360.0,0.41537882]
[1756515633568,1.38965326,108370.0,108360.0,0.41537882]
[1756515634869,0.54625326,108370.0,108360.0,0.41537882]
[1756515635067,1.38961326,108370.0,108360.0,0.43622997]
[1756515635468,0.54625326,108370.0,108360.0,0.43622997]
[1756515635769,1.38957326,108370.0,108360.0,0.43622997]
[1756515637678,0.54625326,108370.0,108360.0,0.43622997]
[1756515641080,0.52336,108370.0,108360.0,0.43622997]
[1756515648391,0.54627771,108370.0,108360.0,0.43622997]
[1756515648984,0.54627771,108370.0,108360.0,0.39904997]
[1756515649286,0.06011,108360.0,108350.0,0.41575882]
[1756515649490,1.28699472,108360.0,108350.0,0.41575882]
[1756515652289,1.64242354,108360.0,108350.0,0.02324]
[1756515652593,0.0236,108340.0,108330.0,0.37866882]
[1756515652793,0.06011,108340.0,108330.0,0.37866882]
[1756515654493,0.06011,108340.0,108330.0,0.40983882]
[1756515655193,0.13495565,108340.0,108330.0,0.40983882]
[1756515655595,0.06011,108340.0,108330.0,0.40983882]
[1756515656197,0.06011,108340.0,108330.0,0.05441]
[1756515656395,0.06011,108340.0,108330.0,0.40983882]
[1756515660193,0.06011,108340.0,108330.0,0.05441]
[1756515660597,0.06011,108340.0,108330.0,0.40983882]
[1756515660598,0.09865236,108340.0,108330.0,0.40983882]
[1756515660796,0.3608,108360.0,108340.0,0.03078]
[1756515661101,0.02315,108350.0,108340.0,0.41697]
[1756515661690,0.03732,108360.0,108340.0,1.47931]
[1756515661994,0.1,108360.0,108350.0,0.41697]
[1756515662396,0.12315,108360.0,108350.0,0.77239882]
[1756515662704,0.16047,108360.0,108350.0,0.77239882]
[1756515663292,0.12315,108360.0,108350.0,0.77239882]
[1756515664502,0.12315,108360.0,108350.0,0.41697]
[1756515664706,0.16047,108360.0,108350.0,0.77239882]
[1756515667603,0.1,108360.0,108350.0,0.77239882]
[1756515667810,0.1,108360.0,108350.0,1.02239882]
[1756515668507,0.06922,108360.0,108350.0,1.37782764]
[1756515668706,0.1,108360.0,108350.0,1.34704764]
[1756515668908,0.1,108360.0,108350.0,1.43932814]
[1756515669102,0.1,108370.0,108350.0,1.43932814]
[1756515669409,0.06945621,108390.0,108360.0,1.91465764]
[1756515669607,0.1,108370.0,108360.0,1.55922882]
[1756515669799,0.1,108370.0,108360.0,1.92002882]
[1756515670200,0.1,108370.0,108360.0,0.7216]
[1756515670402,0.1,108370.0,108360.0,1.5646]
[1756515670812,0.1,108370.0,108360.0,2.27545764]
[1756515672100,0.1,108370.0,108360.0,2.27541764]
[1756515675808,0.1,108370.0,108360.0,2.27533764]
[1756515677505,0.12315,108370.0,108360.0,0.7216]
[1756515677718,0.12315,108370.0,108360.0,2.27529764]
[1756515679413,0.12315,108370.0,108360.0,1.43245764]
[1756515679610,0.35726306,108390.0,108380.0,0.03689]
[1756515679815,0.48041306,108390.0,108380.0,0.41770882]
[1756515680511,1.08584188,108390.0,108380.0,0.02539]
[1756515680720,0.06047,108380.0,108370.0,0.02539]
[1756515680912,0.51589882,108380.0,108370.0,0.02539]
[1756515681215,0.76589882,108380.0,108370.0,0.02539]
[1756515681418,0.16047,108370.0,108360.0,0.38081882]
[1756515681912,0.41047,108370.0,108360.0,0.38081882]
[1756515682115,0.77127,108370.0,108360.0,0.38081882]
[1756515682804,0.77127,108370.0,108360.0,0.41770882]
[1756515688618,0.77127,108370.0,108360.0,0.38081882]